[Event "Early-Titled-Tuesday-Blitz-February-27-2024"]
[Site "Chess.com"]
[Date "2024.02.27"]
[Round "1"]
[White "davigator"]
[Black "Hongjin"]
[Result "0-1"]
[WhiteElo "2395"]
[BlackElo "2700"]
[TimeControl "180+1"]
[EndTime "8:08:52 PST"]
[Termination "Hongjin won by resignation"]

1. e4 {[%clk 0:03:00.9]} 1... c5 {[%clk 0:02:58.6]} 2. Nf3 {[%clk 0:03:00.6]}
2... e6 {[%clk 0:02:58.1]} 3. d4 {[%clk 0:03:00.4]} 3... cxd4 {[%clk 0:02:59]}
4. Nxd4 {[%clk 0:02:58.1]} 4... Nc6 {[%clk 0:02:59.2]} 5. Nc3 {[%clk 0:02:58.3]}
5... a6 {[%clk 0:02:58.9]} 6. a3 {[%clk 0:02:58.5]} 6... Qc7 {[%clk 0:02:54.8]}
7. f4 {[%clk 0:02:58.3]} 7... d6 {[%clk 0:02:53.1]} 8. Be3 {[%clk 0:02:57]} 8...
Nf6 {[%clk 0:02:53.3]} 9. Qf3 {[%clk 0:02:54.6]} 9... Be7 {[%clk 0:02:53.5]} 10.
Bd3 {[%clk 0:02:53.8]} 10... Nxd4 {[%clk 0:02:49.7]} 11. Bxd4 {[%clk 0:02:53.6]}
11... e5 {[%clk 0:02:50.6]} 12. Be3 {[%clk 0:02:53.7]} 12... Be6 {[%clk
0:02:49.9]} 13. O-O {[%clk 0:02:49.8]} 13... O-O {[%clk 0:02:49]} 14. f5 {[%clk
0:02:49.9]} 14... Bc4 {[%clk 0:02:49.1]} 15. g4 {[%clk 0:02:50.1]} 15... d5
{[%clk 0:02:16.7]} 16. exd5 {[%clk 0:02:49.4]} 16... Bc5 {[%clk 0:02:13.8]} 17.
g5 {[%clk 0:02:29.6]} 17... e4 {[%clk 0:01:41.8]} 18. Nxe4 {[%clk 0:02:25.8]}
18... Nxe4 {[%clk 0:01:37.5]} 19. Bxe4 {[%clk 0:02:24.4]} 19... Bxf1 {[%clk
0:01:35.2]} 20. Rxf1 {[%clk 0:02:22.4]} 20... Rfe8 {[%clk 0:01:33.8]} 21. Bxc5
{[%clk 0:02:13.4]} 21... Qxc5+ {[%clk 0:01:33.7]} 22. Kh1 {[%clk 0:02:14.3]}
22... Re5 {[%clk 0:01:25.3]} 23. g6 {[%clk 0:02:10.9]} 23... Rae8 {[%clk
0:01:08]} 24. gxf7+ {[%clk 0:02:10.2]} 24... Kxf7 {[%clk 0:01:08.2]} 25. Qh5+
{[%clk 0:02:06.7]} 25... Kg8 {[%clk 0:01:08.3]} 26. Bg2 {[%clk 0:02:03.1]} 26...
Re1 {[%clk 0:01:04.7]} 27. Qf3 {[%clk 0:01:52.2]} 27... Rxf1+ {[%clk 0:01:02.3]}
28. Qxf1 {[%clk 0:01:51.6]} 28... Qxc2 {[%clk 0:00:53.7]} 29. f6 {[%clk
0:01:46.8]} 29... gxf6 {[%clk 0:00:53]} 30. d6 {[%clk 0:01:42.3]} 30... Qd2
{[%clk 0:00:51.4]} 31. Qxf6 {[%clk 0:01:37.7]} 31... Qe1+ {[%clk 0:00:40.4]} 32.
Bf1 {[%clk 0:01:37.7]} 32... Qe4+ {[%clk 0:00:39.3]} 33. Kg1 {[%clk 0:01:32.3]}
33... Qg6+ {[%clk 0:00:35.3]} 34. Qxg6+ {[%clk 0:01:31.9]} 34... hxg6 {[%clk
0:00:36.2]} 35. Bh3 {[%clk 0:01:30.7]} 35... Kf7 {[%clk 0:00:32.6]} 36. Kf2
{[%clk 0:01:30]} 36... Rd8 {[%clk 0:00:32.8]} 37. d7 {[%clk 0:01:29.5]} 37...
Ke7 {[%clk 0:00:33.4]} 38. Ke3 {[%clk 0:01:29.1]} 38... Rh8 {[%clk 0:00:32.2]}
39. Bg2 {[%clk 0:01:26.8]} 39... b6 {[%clk 0:00:28.4]} 40. h3 {[%clk 0:01:22.3]}
40... Kxd7 {[%clk 0:00:27.5]} 41. Bf1 {[%clk 0:01:22.8]} 41... b5 {[%clk
0:00:25]} 42. Kd4 {[%clk 0:01:22.5]} 42... Kd6 {[%clk 0:00:25.2]} 43. Bg2 {[%clk
0:01:21.6]} 43... Rh4+ {[%clk 0:00:25.3]} 44. Kc3 {[%clk 0:01:20.6]} 44... a5
{[%clk 0:00:25.1]} 45. Bf1 {[%clk 0:01:19.4]} 45... Kc5 {[%clk 0:00:23.9]} 46.
Bg2 {[%clk 0:01:16.9]} 46... b4+ {[%clk 0:00:22.9]} 47. axb4+ {[%clk 0:01:16.6]}
47... axb4+ {[%clk 0:00:23.8]} 48. Kd3 {[%clk 0:01:16.1]} 48... g5 {[%clk
0:00:21.5]} 49. b3 {[%clk 0:01:12.8]} 49... Rf4 {[%clk 0:00:21]} 50. Ke3 {[%clk
0:01:11.6]} 50... Kd6 {[%clk 0:00:21.3]} 51. Bf3 {[%clk 0:01:09.6]} 51... Ke5
{[%clk 0:00:21.3]} 52. Be2 {[%clk 0:01:08]} 52... Re4+ {[%clk 0:00:20.6]} 53.
Kf3 {[%clk 0:01:05.7]} 53... Kd4 {[%clk 0:00:20]} 54. Bc4 {[%clk 0:01:04.5]}
54... Re3+ {[%clk 0:00:20.5]} 55. Kg4 {[%clk 0:01:04.6]} 55... Rc3 {[%clk
0:00:20.9]} 56. Bf7 {[%clk 0:01:03.7]} 56... Ke5 {[%clk 0:00:20.9]} 57. Kxg5
{[%clk 0:01:00.8]} 57... Rxh3 {[%clk 0:00:19.9]} 58. Kg4 {[%clk 0:00:59.3]}
58... Re3 {[%clk 0:00:16.7]} 59. Bg8 {[%clk 0:00:56.3]} 59... Ke4 {[%clk
0:00:15.4]} 60. Bf7 {[%clk 0:00:48.3]} 60... Re1 {[%clk 0:00:14]} 61. Kg3 {[%clk
0:00:46.9]} 61... Rf1 {[%clk 0:00:12.4]} 62. Bc4 {[%clk 0:00:44.6]} 62... Rf3+
{[%clk 0:00:12.5]} 63. Kg2 {[%clk 0:00:41.3]} 63... Ke3 {[%clk 0:00:13.3]} 64.
Bd5 {[%clk 0:00:40.4]} 64... Rf2+ {[%clk 0:00:13.2]} 65. Kg3 {[%clk 0:00:40.9]}
65... Rd2 {[%clk 0:00:13.1]} 66. Be6 {[%clk 0:00:40.4]} 66... Rd3 {[%clk
0:00:12.3]} 67. Kg2 {[%clk 0:00:39.3]} 67... Kd2 {[%clk 0:00:12]} 68. Kf2 {[%clk
0:00:39.7]} 68... Re3 {[%clk 0:00:11.7]} 69. Bd5 {[%clk 0:00:38.8]} 69... Re7
{[%clk 0:00:11.8]} 70. Bg8 {[%clk 0:00:37.8]} 70... Re5 {[%clk 0:00:11.6]} 71.
Bc4 {[%clk 0:00:36.7]} 71... Rf5+ {[%clk 0:00:11.4]} 72. Kg3 {[%clk 0:00:36.1]}
72... Kc2 {[%clk 0:00:10.7]} 73. Be6 {[%clk 0:00:32]} 73... Rf6 {[%clk
0:00:10.9]} 74. Bd5 {[%clk 0:00:31.4]} 74... Rd6 {[%clk 0:00:10.5]} 75. Bc4
{[%clk 0:00:30.6]} 75... Rd4 {[%clk 0:00:10.2]} 76. Be6 {[%clk 0:00:29.5]} 76...
Rd3+ {[%clk 0:00:10.2]} 77. Kf2 {[%clk 0:00:28.5]} 77... Rxb3 {[%clk 0:00:10.7]}
78. Ke2 {[%clk 0:00:27.9]} 78... Rc3 {[%clk 0:00:09.8]} 79. Bf5+ {[%clk
0:00:27.2]} 79... Kc1 {[%clk 0:00:10.2]} 80. Be6 {[%clk 0:00:24]} 80... b3
{[%clk 0:00:10.6]} 0-1

[Event "Early-Titled-Tuesday-Blitz-February-27-2024"]
[Site "Chess.com"]
[Date "2024.02.27"]
[Round "1"]
[White "vugarrasulov"]
[Black "HajiyevKanan"]
[Result "1-0"]
[WhiteElo "3003"]
[BlackElo "2522"]
[TimeControl "180+1"]
[EndTime "8:09:02 PST"]
[Termination "vugarrasulov won by resignation"]

1. e4 {[%clk 0:03:00.9]} 1... c6 {[%clk 0:03:00.1]} 2. d4 {[%clk 0:02:59.7]}
2... d5 {[%clk 0:03:01]} 3. e5 {[%clk 0:02:59.5]} 3... a6 {[%clk 0:03:01.6]} 4.
c4 {[%clk 0:02:57.3]} 4... Bf5 {[%clk 0:03:01.4]} 5. Nc3 {[%clk 0:02:57]} 5...
e6 {[%clk 0:03:01.7]} 6. Nge2 {[%clk 0:02:55.8]} 6... Nd7 {[%clk 0:03:01.9]} 7.
Ng3 {[%clk 0:02:55.7]} 7... Bg6 {[%clk 0:03:02.3]} 8. cxd5 {[%clk 0:02:49.7]}
8... cxd5 {[%clk 0:03:03.2]} 9. Bd3 {[%clk 0:02:48.4]} 9... Ne7 {[%clk
0:03:03.3]} 10. O-O {[%clk 0:02:48.3]} 10... Nc6 {[%clk 0:03:03.1]} 11. Be3
{[%clk 0:02:48]} 11... Qb6 {[%clk 0:03:03.2]} 12. Na4 {[%clk 0:02:38.7]} 12...
Qb4 {[%clk 0:03:01.7]} 13. a3 {[%clk 0:02:35]} 13... Qa5 {[%clk 0:03:02]} 14. b4
{[%clk 0:02:35.3]} 14... Qc7 {[%clk 0:03:01]} 15. Rc1 {[%clk 0:02:34.6]} 15...
Be7 {[%clk 0:02:58.6]} 16. f4 {[%clk 0:02:33.2]} 16... Bxd3 {[%clk 0:02:50.7]}
17. Qxd3 {[%clk 0:02:34.1]} 17... g6 {[%clk 0:02:51.3]} 18. Ne2 {[%clk
0:02:15.6]} 18... h5 {[%clk 0:02:48.2]} 19. g3 {[%clk 0:02:13.1]} 19... Kf8
{[%clk 0:02:46]} 20. Kg2 {[%clk 0:02:12.3]} 20... Kg7 {[%clk 0:02:46.2]} 21. h3
{[%clk 0:02:12.8]} 21... Nb6 {[%clk 0:02:42.4]} 22. Nxb6 {[%clk 0:02:05.7]}
22... Qxb6 {[%clk 0:02:43.3]} 23. Nc3 {[%clk 0:01:53.7]} 23... Rh7 {[%clk
0:02:24.9]} 24. Rc2 {[%clk 0:01:49]} 24... Rhh8 {[%clk 0:02:11.8]} 25. Rfc1
{[%clk 0:01:47.7]} 25... Rac8 {[%clk 0:02:06.9]} 26. Na4 {[%clk 0:01:45.4]}
26... Qb5 {[%clk 0:02:07.2]} 27. Qxb5 {[%clk 0:01:37]} 27... axb5 {[%clk
0:02:08.1]} 28. Nc5 {[%clk 0:01:35]} 28... Bxc5 {[%clk 0:01:48.3]} 29. Rxc5
{[%clk 0:01:35.9]} 29... Na7 {[%clk 0:01:48.8]} 30. Kf3 {[%clk 0:01:28.2]} 30...
Rxc5 {[%clk 0:01:45.3]} 31. Rxc5 {[%clk 0:01:29.1]} 31... Rc8 {[%clk 0:01:44.7]}
32. g4 {[%clk 0:01:28.2]} 32... hxg4+ {[%clk 0:01:45]} 33. hxg4 {[%clk
0:01:29.1]} 33... Rxc5 {[%clk 0:01:41.4]} 34. bxc5 {[%clk 0:01:26.4]} 34... Nc6
{[%clk 0:01:42.3]} 35. Ke2 {[%clk 0:01:23.4]} 35... f5 {[%clk 0:01:33.9]} 36.
exf6+ {[%clk 0:01:15.8]} 36... Kxf6 {[%clk 0:01:33.9]} 37. Kd3 {[%clk
0:01:16.5]} 37... b4 {[%clk 0:01:20.3]} 38. a4 {[%clk 0:01:15.1]} 38... Ke7
{[%clk 0:01:06.4]} 39. Kc2 {[%clk 0:01:12.2]} 39... Kd7 {[%clk 0:01:04.9]} 40.
Kb3 {[%clk 0:01:12.4]} 40... Kc7 {[%clk 0:01:02.2]} 41. Bf2 {[%clk 0:01:08.4]}
41... Kb8 {[%clk 0:00:58.7]} 42. Be3 {[%clk 0:00:57.4]} 42... Ka7 {[%clk
0:00:56.4]} 43. Bd2 {[%clk 0:00:58]} 43... Nxd4+ {[%clk 0:00:55.4]} 44. Kxb4
{[%clk 0:00:58.9]} 44... Nc6+ {[%clk 0:00:51.1]} 45. Kb5 {[%clk 0:00:55.2]}
45... Nd4+ {[%clk 0:00:50.7]} 46. Kb4 {[%clk 0:00:55.9]} 46... Nc6+ {[%clk
0:00:50.9]} 47. Kb3 {[%clk 0:00:52.1]} 47... Kb8 {[%clk 0:00:50]} 48. Bc3 {[%clk
0:00:50.6]} 48... Kc7 {[%clk 0:00:48.7]} 49. Bf6 {[%clk 0:00:50.2]} 49... Kd7
{[%clk 0:00:47.9]} 50. Kc3 {[%clk 0:00:50.4]} 50... Ke8 {[%clk 0:00:48]} 51. Kb3
{[%clk 0:00:46.1]} 51... Kd7 {[%clk 0:00:47.3]} 52. Bc3 {[%clk 0:00:45.3]} 52...
Ke7 {[%clk 0:00:47.2]} 53. a5 {[%clk 0:00:44.7]} 53... Kd7 {[%clk 0:00:47.3]}
54. Ka4 {[%clk 0:00:45.2]} 54... Kc7 {[%clk 0:00:45.6]} 55. Bb2 {[%clk
0:00:40.8]} 55... Na7 {[%clk 0:00:37.7]} 56. Kb4 {[%clk 0:00:36.8]} 56... Nc6+
{[%clk 0:00:35.8]} 57. Ka4 {[%clk 0:00:36.5]} 57... Na7 {[%clk 0:00:36]} 58. Bf6
{[%clk 0:00:31]} 58... Kc6 {[%clk 0:00:33.2]} 59. Kb4 {[%clk 0:00:31.2]} 59...
Nb5 {[%clk 0:00:31.5]} 60. Be5 {[%clk 0:00:27.9]} 60... Na7 {[%clk 0:00:28.9]}
61. Bb2 {[%clk 0:00:22.6]} 61... Nb5 {[%clk 0:00:28]} 62. Be5 {[%clk 0:00:22.7]}
62... Na7 {[%clk 0:00:27.9]} 63. Bd4 {[%clk 0:00:17.5]} 63... Nb5 {[%clk
0:00:27.8]} 64. Bf2 {[%clk 0:00:18.2]} 64... Nc7 {[%clk 0:00:27.4]} 65. Kc3
{[%clk 0:00:18]} 65... Nb5+ {[%clk 0:00:26.8]} 66. Kd3 {[%clk 0:00:18.2]} 66...
Kc7 {[%clk 0:00:23.4]} 67. Be3 {[%clk 0:00:17.8]} 67... Kd7 {[%clk 0:00:23.6]}
68. Bc1 {[%clk 0:00:16.2]} 68... Kc6 {[%clk 0:00:23.4]} 69. Be3 {[%clk
0:00:16.8]} 69... Kd7 {[%clk 0:00:23.9]} 70. Bg1 {[%clk 0:00:12.3]} 70... Kc6
{[%clk 0:00:23.3]} 71. Bf2 {[%clk 0:00:13]} 71... Kd7 {[%clk 0:00:23.5]} 72. Ke3
{[%clk 0:00:12.6]} 72... Kc6 {[%clk 0:00:21.4]} 73. Kf3 {[%clk 0:00:12.4]} 73...
Kd7 {[%clk 0:00:21.5]} 74. Kg3 {[%clk 0:00:11.4]} 74... Ke7 {[%clk 0:00:21.9]}
75. Bg1 {[%clk 0:00:10.5]} 75... Kf6 {[%clk 0:00:21.6]} 76. Kf3 {[%clk
0:00:11.1]} 76... Nc3 {[%clk 0:00:19.9]} 77. c6 {[%clk 0:00:10.3]} 77... bxc6
{[%clk 0:00:12.7]} 78. Bd4+ {[%clk 0:00:10.8]} 1-0

[Event "Early-Titled-Tuesday-Blitz-February-27-2024"]
[Site "Chess.com"]
[Date "2024.02.27"]
[Round "1"]
[White "abelmat"]
[Black "ahkashefi2800"]
[Result "0-1"]
[WhiteElo "2082"]
[BlackElo "2560"]
[TimeControl "180+1"]
[EndTime "8:09:06 PST"]
[Termination "ahkashefi2800 won on time"]

1. d4 {[%clk 0:03:00.9]} 1... d5 {[%clk 0:02:56.5]} 2. c4 {[%clk 0:03:00.9]}
2... c6 {[%clk 0:02:56.4]} 3. Nf3 {[%clk 0:03:01.3]} 3... Nf6 {[%clk 0:02:56.5]}
4. Nc3 {[%clk 0:03:01.2]} 4... Bg4 {[%clk 0:02:56.1]} 5. e3 {[%clk 0:02:59.4]}
5... e6 {[%clk 0:02:56]} 6. Be2 {[%clk 0:02:59.7]} 6... Nbd7 {[%clk 0:02:54.7]}
7. O-O {[%clk 0:02:59.6]} 7... Bd6 {[%clk 0:02:54.2]} 8. b3 {[%clk 0:02:54.5]}
8... O-O {[%clk 0:02:51.5]} 9. Bb2 {[%clk 0:02:54.2]} 9... Rc8 {[%clk
0:02:44.4]} 10. h3 {[%clk 0:02:51.9]} 10... Bxf3 {[%clk 0:02:42.8]} 11. Bxf3
{[%clk 0:02:50.2]} 11... Bb8 {[%clk 0:02:42.7]} 12. Rc1 {[%clk 0:02:44.5]} 12...
Re8 {[%clk 0:02:42.1]} 13. Qd2 {[%clk 0:02:37.3]} 13... dxc4 {[%clk 0:02:42.3]}
14. bxc4 {[%clk 0:02:36.9]} 14... e5 {[%clk 0:02:42.3]} 15. Rcd1 {[%clk
0:01:42.5]} 15... exd4 {[%clk 0:02:39.5]} 16. exd4 {[%clk 0:01:42.3]} 16... Nb6
{[%clk 0:02:38.6]} 17. Be2 {[%clk 0:01:25.6]} 17... Qd6 {[%clk 0:02:35.5]} 18.
g3 {[%clk 0:01:24.6]} 18... c5 {[%clk 0:02:32.9]} 19. d5 {[%clk 0:01:21.1]}
19... Ne4 {[%clk 0:02:30.7]} 20. Nxe4 {[%clk 0:01:02.8]} 20... Rxe4 {[%clk
0:02:31.6]} 21. Bd3 {[%clk 0:00:50.1]} 21... Re7 {[%clk 0:02:23.3]} 22. Rde1
{[%clk 0:00:37.7]} 22... Rce8 {[%clk 0:02:23]} 23. Rxe7 {[%clk 0:00:37.4]} 23...
Qxe7 {[%clk 0:02:21.7]} 24. Bc3 {[%clk 0:00:32.7]} 24... Bd6 {[%clk 0:02:16.3]}
25. Re1 {[%clk 0:00:26.5]} 25... Qxe1+ {[%clk 0:02:16.4]} 26. Qxe1 {[%clk
0:00:26.8]} 26... Rxe1+ {[%clk 0:02:17.3]} 27. Bxe1 {[%clk 0:00:27.3]} 27... Nd7
{[%clk 0:02:17.7]} 28. Bc3 {[%clk 0:00:27]} 28... Be5 {[%clk 0:02:17.5]} 29. Bd2
{[%clk 0:00:23]} 29... Bd4 {[%clk 0:02:14.4]} 30. Kg2 {[%clk 0:00:22.6]} 30...
Ne5 {[%clk 0:02:13.8]} 31. Be2 {[%clk 0:00:22.1]} 31... f6 {[%clk 0:02:14.3]}
32. f4 {[%clk 0:00:21.2]} 32... Nf7 {[%clk 0:02:14.4]} 33. f5 {[%clk 0:00:18.5]}
33... Nd6 {[%clk 0:02:14.3]} 34. Kf3 {[%clk 0:00:17.5]} 34... Be5 {[%clk
0:02:14.5]} 35. g4 {[%clk 0:00:15.1]} 35... b6 {[%clk 0:02:14.6]} 36. Be3 {[%clk
0:00:14.8]} 36... h6 {[%clk 0:02:14.6]} 37. Bd3 {[%clk 0:00:14.5]} 37... Kf7
{[%clk 0:02:14.7]} 38. h4 {[%clk 0:00:14.6]} 38... Ke7 {[%clk 0:02:14.4]} 39. g5
{[%clk 0:00:14.9]} 39... hxg5 {[%clk 0:02:15.3]} 40. hxg5 {[%clk 0:00:15]} 40...
Nf7 {[%clk 0:02:15.1]} 41. gxf6+ {[%clk 0:00:13.6]} 41... gxf6 {[%clk
0:02:14.5]} 42. Bf4 {[%clk 0:00:11.9]} 42... Bxf4 {[%clk 0:02:14.1]} 43. Kxf4
{[%clk 0:00:12.8]} 43... Kd6 {[%clk 0:02:15]} 44. Ke4 {[%clk 0:00:12.8]} 44...
Ne5 {[%clk 0:02:15.9]} 45. Be2 {[%clk 0:00:13.2]} 45... Ke7 {[%clk 0:02:15.3]}
46. Kf4 {[%clk 0:00:10.5]} 46... Nf7 {[%clk 0:02:15.2]} 47. Kg4 {[%clk
0:00:09.9]} 47... Nd6 {[%clk 0:02:15.9]} 48. Kf4 {[%clk 0:00:09.4]} 48... Kd7
{[%clk 0:02:15.5]} 49. Kg4 {[%clk 0:00:09.2]} 49... Kd8 {[%clk 0:02:15.1]} 50.
Kh5 {[%clk 0:00:09]} 50... Ke7 {[%clk 0:02:14.6]} 51. Kg6 {[%clk 0:00:09.3]}
51... a6 {[%clk 0:02:13.2]} 52. Bd3 {[%clk 0:00:09.2]} 52... b5 {[%clk
0:02:12.7]} 53. cxb5 {[%clk 0:00:09.1]} 53... axb5 {[%clk 0:02:13.6]} 54. a3
{[%clk 0:00:08.8]} 54... c4 {[%clk 0:02:13.9]} 55. Bc2 {[%clk 0:00:08.4]} 55...
Nf7 {[%clk 0:02:12.9]} 56. Kg7 {[%clk 0:00:06.7]} 56... Nd6 {[%clk 0:02:09.4]}
57. Kg6 {[%clk 0:00:05.8]} 57... Nb7 {[%clk 0:02:09.4]} 58. Kg7 {[%clk
0:00:05.7]} 58... Nc5 {[%clk 0:02:01.5]} 59. d6+ {[%clk 0:00:05.8]} 59... Kxd6
{[%clk 0:01:59.3]} 60. Kxf6 {[%clk 0:00:06.7]} 60... Kd5 {[%clk 0:01:57.4]} 61.
Kg7 {[%clk 0:00:07.1]} 61... Nd7 {[%clk 0:00:25.5]} 62. f6 {[%clk 0:00:08]}
62... Nxf6 {[%clk 0:00:15.6]} 63. Kxf6 {[%clk 0:00:07.9]} 63... Kd4 {[%clk
0:00:16.1]} 64. Ke6 {[%clk 0:00:06.5]} 64... Kc3 {[%clk 0:00:16.4]} 65. Bd1
{[%clk 0:00:05.8]} 65... Kd2 {[%clk 0:00:16.3]} 66. Bh5 {[%clk 0:00:01.9]} 66...
Kc3 {[%clk 0:00:15.4]} 0-1

[Event "Early-Titled-Tuesday-Blitz-February-27-2024"]
[Site "Chess.com"]
[Date "2024.02.27"]
[Round "1"]
[White "agvania123"]
[Black "Makswolf200817"]
[Result "0-1"]
[WhiteElo "2411"]
[BlackElo "2724"]
[TimeControl "180+1"]
[EndTime "8:09:11 PST"]
[Termination "Makswolf200817 won by resignation"]

1. c4 {[%clk 0:03:00.9]} 1... e6 {[%clk 0:02:59.5]} 2. d4 {[%clk 0:02:58.8]}
2... d5 {[%clk 0:02:59.6]} 3. Nc3 {[%clk 0:02:59.3]} 3... c6 {[%clk 0:02:59.8]}
4. cxd5 {[%clk 0:02:57.7]} 4... exd5 {[%clk 0:02:59.8]} 5. Bf4 {[%clk
0:02:56.8]} 5... Bf5 {[%clk 0:02:59.8]} 6. e3 {[%clk 0:02:57.1]} 6... Nf6 {[%clk
0:02:59.7]} 7. Qb3 {[%clk 0:02:57.5]} 7... Qb6 {[%clk 0:02:58.4]} 8. Qxb6 {[%clk
0:02:55.3]} 8... axb6 {[%clk 0:02:58.2]} 9. Nf3 {[%clk 0:02:52.9]} 9... b5
{[%clk 0:02:55.5]} 10. h3 {[%clk 0:02:49.8]} 10... h6 {[%clk 0:02:49.7]} 11. Ne5
{[%clk 0:02:44.2]} 11... Nbd7 {[%clk 0:02:47.9]} 12. Be2 {[%clk 0:02:29.3]}
12... Bb4 {[%clk 0:02:41]} 13. O-O {[%clk 0:02:25.8]} 13... O-O {[%clk
0:02:40.6]} 14. Nxd7 {[%clk 0:02:22.7]} 14... Nxd7 {[%clk 0:02:38.8]} 15. a3
{[%clk 0:02:22.4]} 15... Be7 {[%clk 0:02:33.1]} 16. Rfc1 {[%clk 0:02:15.4]}
16... Rfe8 {[%clk 0:02:30.6]} 17. g4 {[%clk 0:01:47.1]} 17... Bg6 {[%clk
0:02:27.3]} 18. Nxb5 {[%clk 0:01:35.8]} 18... cxb5 {[%clk 0:01:55.2]} 19. Bxb5
{[%clk 0:01:36.7]} 19... Nb6 {[%clk 0:01:50.9]} 20. Bxe8 {[%clk 0:01:35.2]}
20... Rxe8 {[%clk 0:01:51.8]} 21. Rc7 {[%clk 0:01:32.9]} 21... Bf8 {[%clk
0:01:47]} 22. Rxb7 {[%clk 0:01:30.1]} 22... Nc4 {[%clk 0:01:47.6]} 23. a4 {[%clk
0:01:16.2]} 23... Ra8 {[%clk 0:01:40]} 24. b3 {[%clk 0:01:15.9]} 24... Na5
{[%clk 0:01:36.9]} 25. Rb5 {[%clk 0:01:11.9]} 25... Bc2 {[%clk 0:01:36.6]} 26.
b4 {[%clk 0:01:04.7]} 26... Nc6 {[%clk 0:01:32.9]} 27. a5 {[%clk 0:00:55.7]}
27... Nxb4 {[%clk 0:01:29.3]} 28. a6 {[%clk 0:00:43.7]} 28... Bd3 {[%clk
0:01:20.9]} 29. Rb6 {[%clk 0:00:27.9]} 29... Rxa6 {[%clk 0:01:14.2]} 30. Raxa6
{[%clk 0:00:26.9]} 30... Nxa6 {[%clk 0:01:14.7]} 31. Bd6 {[%clk 0:00:24.9]}
31... Bxd6 {[%clk 0:01:12.2]} 32. Rxd6 {[%clk 0:00:25.8]} 32... Nb4 {[%clk
0:01:12.7]} 33. Rd8+ {[%clk 0:00:24.6]} 33... Kh7 {[%clk 0:01:12.8]} 34. Kg2
{[%clk 0:00:25]} 34... Nc2 {[%clk 0:01:10.6]} 35. Kg3 {[%clk 0:00:25]} 35... Be4
{[%clk 0:01:06.9]} 36. f3 {[%clk 0:00:23.7]} 36... Bd3 {[%clk 0:01:05.2]} 37.
Kf2 {[%clk 0:00:23.7]} 37... Bc4 {[%clk 0:01:02]} 38. Rd7 {[%clk 0:00:22.5]}
38... Kg6 {[%clk 0:01:02]} 39. h4 {[%clk 0:00:22.7]} 39... Kf6 {[%clk
0:00:56.5]} 40. h5 {[%clk 0:00:21.4]} 40... Ke6 {[%clk 0:00:56.1]} 41. Rb7
{[%clk 0:00:20.8]} 41... Na3 {[%clk 0:00:47]} 42. Rb6+ {[%clk 0:00:20.8]} 42...
Ke7 {[%clk 0:00:47]} 43. f4 {[%clk 0:00:20.8]} 43... Nb5 {[%clk 0:00:46.4]} 44.
f5 {[%clk 0:00:20.5]} 44... Nc3 {[%clk 0:00:44.5]} 45. Kg3 {[%clk 0:00:20.5]}
45... Bd3 {[%clk 0:00:34.7]} 46. Rb3 {[%clk 0:00:19.1]} 46... Ne4+ {[%clk
0:00:34]} 47. Kf4 {[%clk 0:00:19.4]} 47... Bc2 {[%clk 0:00:33.3]} 48. Rb7+
{[%clk 0:00:19.8]} 48... Ke8 {[%clk 0:00:32.4]} 49. Ke5 {[%clk 0:00:19.7]} 49...
Nf6 {[%clk 0:00:31.8]} 50. Rb8+ {[%clk 0:00:18.4]} 50... Kd7 {[%clk 0:00:31.4]}
51. Rb7+ {[%clk 0:00:19.3]} 51... Ke8 {[%clk 0:00:30.8]} 52. Rb8+ {[%clk
0:00:19.8]} 52... Kd7 {[%clk 0:00:25.5]} 53. Rb7+ {[%clk 0:00:20.3]} 53... Kc6
{[%clk 0:00:26.2]} 54. Rxf7 {[%clk 0:00:20.7]} 54... Nxg4+ {[%clk 0:00:27]} 55.
Kf4 {[%clk 0:00:21.2]} 55... Nf6 {[%clk 0:00:27.5]} 56. Kf3 {[%clk 0:00:15.8]}
56... Nxh5 {[%clk 0:00:24.3]} 57. f6 {[%clk 0:00:13.6]} 57... gxf6 {[%clk
0:00:23.7]} 58. Kg4 {[%clk 0:00:12.7]} 58... Bd1+ {[%clk 0:00:21.8]} 59. Kh4
{[%clk 0:00:12.4]} 59... Kd6 {[%clk 0:00:21.1]} 60. Rh7 {[%clk 0:00:12.8]} 60...
Ke6 {[%clk 0:00:20.1]} 61. Rxh6 {[%clk 0:00:13.3]} 61... Ng7 {[%clk 0:00:20.8]}
62. Rh7 {[%clk 0:00:13.8]} 62... Nf5+ {[%clk 0:00:21.2]} 63. Kh3 {[%clk
0:00:12.9]} 63... Nxe3 {[%clk 0:00:21.9]} 64. Kg3 {[%clk 0:00:13.1]} 64... Nf5+
{[%clk 0:00:22.2]} 65. Kf4 {[%clk 0:00:13.5]} 65... Nxd4 {[%clk 0:00:22.5]} 66.
Rh1 {[%clk 0:00:11.3]} 66... Bc2 {[%clk 0:00:21.2]} 67. Re1+ {[%clk 0:00:11.2]}
67... Be4 {[%clk 0:00:21.6]} 68. Ke3 {[%clk 0:00:10]} 68... Ke5 {[%clk
0:00:21.4]} 69. Ra1 {[%clk 0:00:09.2]} 69... f5 {[%clk 0:00:21.6]} 70. Ra8
{[%clk 0:00:08.6]} 70... f4+ {[%clk 0:00:22.1]} 71. Kf2 {[%clk 0:00:08.9]} 71...
Nf5 {[%clk 0:00:18.5]} 72. Re8+ {[%clk 0:00:09.2]} 72... Kd4 {[%clk 0:00:19]}
73. Rf8 {[%clk 0:00:08.7]} 73... Kd3 {[%clk 0:00:18]} 74. Re8 {[%clk 0:00:05.6]}
74... d4 {[%clk 0:00:18.1]} 75. Rd8 {[%clk 0:00:06.2]} 75... Ne3 {[%clk
0:00:16.5]} 76. Re8 {[%clk 0:00:06.3]} 76... f3 {[%clk 0:00:16.6]} 77. Re7
{[%clk 0:00:05]} 77... Nd1+ {[%clk 0:00:16.6]} 78. Kg3 {[%clk 0:00:04.7]} 78...
f2 {[%clk 0:00:16.5]} 79. Rf7 {[%clk 0:00:04.9]} 79... Ke2 {[%clk 0:00:15.5]}
80. Rf4 {[%clk 0:00:04.7]} 80... f1=Q {[%clk 0:00:15.4]} 81. Rxf1 {[%clk
0:00:04.4]} 81... Kxf1 {[%clk 0:00:16.3]} 82. Kf4 {[%clk 0:00:05.3]} 82... Nc3
{[%clk 0:00:15.3]} 83. Ke5 {[%clk 0:00:05.1]} 83... d3 {[%clk 0:00:15.8]} 84.
Kd4 {[%clk 0:00:06]} 84... d2 {[%clk 0:00:16.3]} 85. Kxc3 {[%clk 0:00:06.8]}
85... d1=Q {[%clk 0:00:16.8]} 0-1